Cogmind - Beta 17.1 @@@ ROGUE MODE // 2026.09.12 @ 23:23:42 Player: MoYuYu Result: Destroyed by C-57 Dissector with Advanced Concussive RPG Performance ------------- Evolutions (9) 4500 Regions Visited (12) 2400 Robots Destroyed (83) 415 Value Destroyed (3396) 3396 Prototype IDs (28) 560 Alien Tech Used (0) 0 Bonus (307) 307 TOTAL SCORE: 11578 Bonus ------- Follower Combat Kills 21 Aligned with FarCom 300 Friendly Fire -14 Cogmind --------- Core Integrity 0/1600 Matter 10/300 Energy 88/100 System Corruption 17% Temperature Cool (0) Movement Core (50) Location -1/Access Parts ------- > --- POWER (1) -------- (None) > --- PROPULSION (7) --- (None) > --- UTILITY (15) ----- (None) > --- WEAPON (2) ------- (None) > --- INVENTORY (5) ---- Micro Antimatter Reactor Railgun Linear Accelerator Linear Accelerator Plasma Cutter Peak State ------------ > --- POWER ------------ Antimatter Reactor > --- PROPULSION ------- Improved Heavy Treads Improved Carbon-fiber Leg Improved VSS Leg Heavy Shield Leg Potential Leg > --- UTILITY ---------- Advanced Heat Sink Advanced Heat Sink Advanced Heat Sink Improved Coolant Injector Improved Coolant Injector Large Storage Unit Structural Scanner Triangulator Advanced Reaction Control System Layered Light Armor Plating Improved Focal Shield Hacking Suite Advanced System Shield > --- WEAPON ----------- Enhanced Nova Cannon Hypervelocity Gauss Cannon > --- INVENTORY -------- Antimatter Reactor Light Quantum Reactor Light Quantum Reactor Field Propulsion Drive Nuclear Pulse Array Advanced Terrain Scanner Cloaking Device Advanced Hardlight Generator Improved Hacking Suite Improved Hacking Suite System Shield Plasma Cutter Chainsword [Rating: 140] Favorites ----------- Power Antimatter Reactor Engine Ion Engine Reactor Antimatter Reactor Propulsion Improved Carbon-fiber Leg Treads Improved Heavy Treads Leg Improved Carbon-fiber Leg Wheel Compact Wheel Hover Unit Improved Antigrav System Flight Unit Xenon Bombardment Thruster Utility Hacking Suite Device Seismic Detector Storage Medium Storage Unit Processor Improved Signal Interpreter Hackware Hacking Suite Protection Hardened Light Armor Plating Weapon Heavy Laser Energy Gun Heavy Laser Energy Cannon Enhanced Nova Cannon Ballistic Gun Assault Rifle Ballistic Cannon Linear Accelerator Launcher Rocket Launcher Special Weapon Plasma Cutter Slashing Weapon Chainsword Piercing Weapon Makeshift Spear Build | -11 -10 -10 -10 -9 -8 -7 -6 -5 -4 -3 -2 -1 ------- Run | Yrd Mat Min Exi Min Mat Fac Fac Fac Fac Res Res Acc Slots Evolved 18 | . . . . . 4 2 2 2 2 2 2 2 Power . | . . . . . . . . . . . . . Propulsion 5 | . . . . . 2 . . . 1 1 1 . Utility 13 | . . . . . 2 2 2 2 1 1 1 2 Weapon . | . . . . . . . . . . . . . Parts Attached 132 | 6 7 1 2 6 14 6 4 8 4 1 24 49 Power 14 | 1 1 . . 1 2 . 2 1 1 . 2 3 Engine 7 | 1 1 . . 1 2 . 2 . . . . . Core . | . . . . . . . . . . . . . Reactor 7 | . . . . . . . . 1 1 . 2 3 Propulsion 42 | 2 3 . 2 . 5 1 1 . . 1 10 17 Treads 5 | . 1 . . . 1 . . . . . 1 2 Leg 16 | . 2 . 2 . 4 1 1 . . 1 1 4 Wheel 7 | 2 . . . . . . . . . . . 5 Hover 6 | . . . . . . . . . . . . 6 Flight 8 | . . . . . . . . . . . 8 . Utility 46 | 1 3 . . 2 4 3 1 4 3 . 9 16 Device 27 | . 2 . . . 4 . 1 3 1 . 6 10 Storage 5 | 1 1 . . . . 1 . . . . . 2 Processor 3 | . . . . . . 1 . . . . . 2 Hackware 6 | . . . . . . 1 . 1 1 . 3 . Protection 5 | . . . . 2 . . . . 1 . . 2 Artifact . | . . . . . . . . . . . . . Weapon 30 | 2 . 1 . 3 3 2 . 3 . . 3 13 Energy Gun 8 | . . 1 . 1 . 1 . 1 . . 1 3 Energy Cannon 1 | . . . . . . . . . . . 1 . Ballistic Gun 6 | 2 . . . 1 2 1 . . . . . . Ballistic Cannon 7 | . . . . . . . . . . . 1 6 Launcher 4 | . . . . . 1 . . . . . . 3 Special Weapon 1 | . . . . . . . . . . . . 1 Impact Weapon . | . . . . . . . . . . . . . Slashing Weapon 2 | . . . . . . . . 2 . . . . Piercing Weapon 1 | . . . . 1 . . . . . . . . Special Melee Weapon . | . . . . . . . . . . . . . Unidentified Prototypes . | . . . . . . . . . . . . . Parts Lost 77 | . 2 . . 4 . . . . 1 . 31 39 Power 6 | . 1 . . 1 . . . . . . 2 2 Propulsion 26 | . . . . . . . . . . . 13 13 Utility 32 | . 1 . . 1 . . . . 1 . 12 17 Weapon 13 | . . . . 2 . . . . . . 4 7 Highest Loss Streak 23 | . 1 . . 2 . . . . 1 . 23 21 To Critical Strikes . | . . . . . . . . . . . . . Average Backups 10 | 3 6 8 7 6 7 9 12 14 12 13 13 8 Power 1 | . . . . . 1 1 1 2 2 3 2 . Propulsion 2 | 1 3 3 3 3 1 2 3 3 3 2 1 . Utility 2 | . . 2 2 1 1 1 1 2 2 4 5 . Weapon 3 | . 1 2 2 1 3 3 4 4 3 3 1 5 Tool/Special . | . . . . . . . . . . . . . Unused Backups 29 | . . 3 . . 4 2 5 3 1 . 3 8 Power 5 | . . . . . 1 . 2 . . . 1 1 Propulsion 5 | . . . . . 1 1 1 2 . . . . Utility 5 | . . 2 . . . . . . 1 . 1 1 Weapon 14 | . . 1 . . 2 1 2 1 . . 1 6 Tool/Special . | . . . . . . . . . . . . . Average Slot Usage (%) 91 | . 92 100 100 90 95 99 99 99 99 97 89 69 Engine 5 | . 14 14 14 12 8 7 6 . . . . . Reactor 2 | . . . . . . . . 4 5 4 3 3 Leg 20 | . 1 28 28 28 32 30 26 23 25 28 17 2 Wheel 1 | . 23 . . . . . . . . . . 3 Hover 1 | . . . . . . . . . . . . 10 Device 19 | . 6 14 14 2 17 22 25 28 23 23 29 18 Storage 8 | . 14 14 14 14 9 7 6 5 5 4 3 7 Processor 2 | . . . . . . . 6 5 5 4 1 5 Hackware 6 | . . . . . . 6 6 11 15 14 13 7 Protection 5 | . . . . 11 7 7 6 5 7 6 4 3 Energy Gun 4 | . . 6 14 7 2 6 6 5 7 4 2 3 Ballistic Gun 6 | . 28 21 14 7 10 7 6 . . . . . Slashing Weapon 1 | . . . . . . . . 4 2 4 2 . Peak Build Rating 140 | 6 8 9 27 29 37 46 55 76 89 95 140 134 Average Rating 62 | 4 6 8 14 27 31 43 52 70 85 93 120 93 On Entrance 37 | . 6 8 9 27 27 36 46 55 76 89 95 14 Avg Prop Armor Cover (%) 12 | . 12 . . . 6 . . 3 7 11 16 13 Naked Turns 10 | . . . . . . . . . . . . 10 Heaviest Build 75 | 12 20 21 21 23 32 42 45 55 58 59 75 52 Greatest Support 123 | 26 26 20 60 60 80 84 84 81 99 63 123 66 Greatest Overweight (x) 4 | . 1 1 1 . . . . . . . 1 4 Average Overweight (x) . | . . . . . . . . . . . . . Largest Inventory Capacity 15 | 8 10 10 10 10 10 15 15 15 15 15 15 10 Average Capacity 12 | 6 9 10 10 10 10 10 15 15 15 15 14 9 Most Carried 15 | 6 10 10 10 10 10 12 15 15 15 15 15 10 Average Carried 11 | 3 6 9 10 9 9 10 13 14 13 14 14 8 Final Capacity 15 | 8 10 10 10 10 10 15 15 15 15 15 5 5 Final Carried 15 | 6 10 10 10 10 10 12 15 15 15 15 5 5 Class Distribution -------------------- 47% | Mutant 38% | Hacker-Mutant 13% | Scavenger-Mutant Dominant Class ---------------- Mutant | -10/Materials Mutant | -10/Mines Mutant | -10/Exiles Mutant | -9/Mines Mutant | -8/Materials Mutant | -7/Factory Mutant | -6/Factory Hacker-Mutant | -5/Factory Hacker-Mutant | -4/Factory Hacker-Mutant | -3/Research Hacker-Mutant | -2/Research Scavenger-Mutant | -1/Access Resources | -11 -10 -10 -10 -9 -8 -7 -6 -5 -4 -3 -2 -1 ----------- Run | Yrd Mat Min Exi Min Mat Fac Fac Fac Fac Res Res Acc Matter Collected 2424 | 184 304 40 . 118 161 146 . 128 341 . 301 701 Remotely . | . . . . . . . . . . . . . Salvage Created 3106 | . 379 . . 107 232 46 . 125 434 . 714 1069 Parts 183 | . 19 . . 9 15 3 . 6 16 . 60 55 Haulers Intercepted 1 | . 1 . . . . . . . . . . . Recyclers Shooed 4 | . 1 . . . . . . . . . 1 2 Parts Field Recycled . | . . . . . . . . . . . . . Retrieved Matter . | . . . . . . . . . . . . . Parts Self-Destructed . | . . . . . . . . . . . . . Prevented . | . . . . . . . . . . . . . Parts Restored . | . . . . . . . . . . . . . Kills | -11 -10 -10 -10 -9 -8 -7 -6 -5 -4 -3 -2 -1 ------- Run | Yrd Mat Min Exi Min Mat Fac Fac Fac Fac Res Res Acc Combat Hostiles Destroyed 67 | . 9 . . 4 8 1 . 2 10 . 13 20 Guns 31 | . 9 . . 4 4 1 . . 9 . 1 3 Cannons 21 | . . . . . . . . . . . 12 9 AOE 12 | . . . . . 4 . . . . . . 8 Classes Destroyed 13 | . 4 . . 1 2 1 . . . . . 5 Worker 6 | . 1 . . 1 . . . 1 . . 1 2 Builder 2 | . . . . . . . . . . . . 2 Tunneler 1 | . . . . 1 . . . . . . . . Hauler 1 | . 1 . . . . . . . . . . . Recycler 4 | . . . . . 1 . . . 1 . . 2 Mechanic 1 | . . . . . . . . . . . . 1 Operator 1 | . . . . . 1 . . . . . . . Swarmer 29 | . 3 . . 4 5 . . . 9 . 5 3 Cutter 5 | . . . . . . . . . . . . 5 Grunt 12 | . 6 . . . 3 . . . . . . 3 Duelist 1 | . . . . . . . . . . . . 1 Hunter 3 | . . . . . . . . . . . . 3 Programmer 17 | . . . . . . 1 . 2 1 . 8 5 Best Kill Streak 10 | . 3 . . 4 10 1 . 2 4 . 7 6 Combat Bots Only 8 | . 2 . . 4 8 1 . 2 4 . 6 6 Max Kills in Single Turn 5 | . 2 . . 2 2 1 . 1 2 . 2 5 Gunslinging 1 | . . . . 1 . . . . 1 . . . Exploded 5 | . . . . . 1 . . . . . . 5 Melee . | . . . . . . . . . . . . . Uniques/NPCs Destroyed . | . . . . . . . . . . . . . Combat | -11 -10 -10 -10 -9 -8 -7 -6 -5 -4 -3 -2 -1 -------- Run | Yrd Mat Min Exi Min Mat Fac Fac Fac Fac Res Res Acc Hostile Shots Fired 923 | . 58 6 . 56 63 15 . 17 36 . 334 338 Missed 337 | . 21 2 . 15 24 5 . 2 15 . 133 120 Hits 586 | . 37 4 . 41 39 10 . 15 21 . 201 218 Melee 27 | . . . . 7 . . . . . . 1 19 Projectile 559 | . 37 4 . 34 39 10 . 15 21 . 200 199 AOE 2 | . . . . . . . . . . . 2 . Critical Strikes 36 | . 2 . . 1 1 1 . . 1 . 13 17 Part Disruptions 4 | . . . . . . . . 1 . . 1 2 Damage Taken 12586 | . 442 34 . 515 460 150 . 349 505 . 4650 5481 Core 2996 | . 90 8 . 128 60 16 . 21 64 . 998 1611 Absorbed by Shields 264 | . . . . . . . . . . . . 264 Redirected to Shielding 52 | . . . . . . . . . . . . 52 Regen/Repaired (Parts) 520 | . . . . . 175 . . . 124 . 221 . Core Remaining (%) 79 | 100 . . . 9 89 97 100 97 94 100 31 . Volleys Fired 208 | . 33 . . 11 15 8 . 9 21 . 43 68 Largest 2 | . 2 . . 2 2 2 . 2 2 . 2 2 Hottest 189 | . 40 . . 85 50 94 . 138 138 . 189 140 Shots Fired 365 | . 66 . . 24 24 16 2 18 42 . 57 116 Gun 236 | . 66 . . 24 18 16 2 18 42 . 11 39 Cannon 119 | . . . . . . . . . . . 46 73 Launcher 10 | . . . . . 6 . . . . . . 4 Special . | . . . . . . . . . . . . . Kinetic 180 | . 66 . . 11 18 8 . . . . 4 73 Thermal 159 | . . . . 5 . 8 2 18 42 . 53 31 Explosive 10 | . . . . . 6 . . . . . . 4 Electromagnetic 16 | . . . . 8 . . . . . . . 8 Robot Hit Streak 19 | . 15 . . 5 5 5 . 16 19 . 14 15 Robot Miss Streak 5 | . 5 . . 4 2 3 . 1 3 . 2 3 Penetration Max . | . . . . . . . . . . . . . Secondary Targets 6 | . . . . 2 2 . . . 2 . . . Max Gunslinging Chain 1 | . . . . 1 1 . . . 1 . . . Shots Hit Robots 239 | . 46 . . 13 18 9 . 18 27 . 33 75 Core Hits 126 | . 20 . . 8 15 2 . 1 11 . 15 54 Critical Kills 1 | . . . . . . . . . . . 1 . Critical Parts Destroyed . | . . . . . . . . . . . . . Critical Strikes 13 | . . . . 2 . . . 1 2 . 1 7 Burn 4 | . . . . 1 . . . 1 2 . . . Destroy 1 | . . . . . . . . . . . 1 . Blast 7 | . . . . . . . . . . . . 7 Impale 1 | . . . . 1 . . . . . . . . Melee Attacks 49 | . . . . 7 7 . . 11 10 2 12 . Impact . | . . . . . . . . . . . . . Slashing 35 | . . . . . . . . 11 10 2 12 . Piercing 14 | . . . . 7 7 . . . . . . . Sneak Attacks 3 | . . . . . . . . 2 1 . . . Combat Hostiles . | . . . . . . . . . . . . . Follow-up Attacks . | . . . . . . . . . . . . . Damage Inflicted 9012 | . 619 . . 183 768 207 . 516 588 . 1606 4525 Guns 3160 | . 619 . . 157 264 207 . 381 527 . 162 843 Cannons 3504 | . . . . . . . . . . . 1428 2076 Explosions 2088 | . . . . . 504 . . . . . . 1584 Melee 222 | . . . . 26 . . . 135 61 . . . Ramming 38 | . . . . . . . . . . . 16 22 Kinetic 3101 | . 619 . . 55 264 66 . . . . 21 2076 Thermal 3445 | . . . . 48 . 141 . 381 527 . 1569 779 Explosive 2088 | . . . . . 504 . . . . . . 1584 Electromagnetic 118 | . . . . 54 . . . . . . . 64 Impact . | . . . . . . . . . . . . . Slashing 196 | . . . . . . . . 135 61 . . . Piercing 26 | . . . . 26 . . . . . . . . Highest Corruption 24 | . . . . 4 . 2 2 5 . . 24 17 Average Corruption 4 | . . . . 4 . 1 2 3 . . 9 3 Corruption Purged . | . . . . . . . . . . . . . Corruption Blocked . | . . . . . . . . . . . . . Effects 92 | . . . . 19 . . 5 14 . . 35 19 Message Errors 21 | . . . . 6 . . 1 4 . . 6 4 Matter Fused 25 | . . . . 5 . . 1 4 . . 7 8 Heat Flow Errors 11 | . . . . 1 . . 1 2 . . 6 1 Energy Discharges 7 | . . . . . . . . 1 . . 5 1 Parts Rejected 1 | . . . . . . . . . . . 1 . Parts Fused 2 | . . . . 2 . . . . . . . . Data Loss (minor) 8 | . . . . 2 . . . 2 . . 3 1 Data Loss (major) 3 | . . . . . . . . . . . 2 1 Misfires 9 | . . . . 2 . . 2 . . . 2 3 Alerts 3 | . . . . 1 . . . 1 . . 1 . Weapon Failures 2 | . . . . . . . . . . . 2 . Overload Shots . | . . . . . . . . . . . . . Overflow Damage 329 | . . . . . 47 . . 36 . . 75 171 Projectiles 145 | . . . . . . . . . . . 75 70 Explosions 148 | . . . . . 47 . . . . . . 101 Melee 36 | . . . . . . . . 36 . . . . Knockbacks 25 | . . . . . . . . . . . . 25 Impact 1 | . . . . . . . . . . . . 1 Kinetic 22 | . . . . . . . . . . . . 22 Secondary 2 | . . . . . . . . . . . . 2 Self-Inflicted Damage 286 | . . . . . 13 . . . . . 7 266 Shots 5 | . . . . . 1 . . . . . . 4 Rammed 3 | . . . . . . . . . . . 2 1 Targets Rammed 3 | . . . . . . . . . . . 2 1 Kicked . | . . . . . . . . . . . . . Crushed . | . . . . . . . . . . . . . Highest Temperature 241 | . 26 . . 241 99 197 163 171 . . 200 149 Average Temperature 70 | . 10 . . 63 36 109 87 84 . . 90 50 Received Heat Transfer 693 | . 243 . . . 180 . . . . . 18 252 Siege Activations . | . . . . . . . . . . . . . Martial Activations . | . . . . . . . . . . . . . Shielding Activations . | . . . . . . . . . . . . . Robots Disrupted . | . . . . . . . . . . . . . Combat Hostiles . | . . . . . . . . . . . . . Robots Corrupted . | . . . . . . . . . . . . . Combat Hostiles . | . . . . . . . . . . . . . Parts Fried 1 | . . . . . . . . . . . . 1 Impact Corruptions . | . . . . . . . . . . . . . Robots Melted 3 | . . . . . . . . 2 1 . . . Combat Hostiles 3 | . . . . . . . . 2 1 . . . Parts Melted 17 | . . . . . . . . 2 7 . 7 1 Heat Transferred 4329 | . . . . 185 . 222 . 666 1110 . 1258 888 Parts Sabotaged . | . . . . . . . . . . . . . Parts Stolen . | . . . . . . . . . . . . . Parts Stripped . | . . . . . . . . . . . . . Power Chain Reactions . | . . . . . . . . . . . . . Alert | -11 -10 -10 -10 -9 -8 -7 -6 -5 -4 -3 -2 -1 ------- Run | Yrd Mat Min Exi Min Mat Fac Fac Fac Fac Res Res Acc Maximum Alert Level 1 | . . . . . 1 . . . . . . 1 Low Security (%) 99 | 100 100 100 . 100 98 100 100 100 100 100 100 96 Level 1 . | . . . . . 1 . . . . . . 3 Level 2 . | . . . . . . . . . . . . . Level 3 . | . . . . . . . . . . . . . Level 4 . | . . . . . . . . . . . . . Level 5 . | . . . . . . . . . . . . . High Security . | . . . . . . . . . . . . . Max Security . | . . . . . . . . . . . . . Peak Influence 304 | . 87 81 . 90 251 30 21 42 169 8 115 304 Initial 24 | . . 24 . . 1 . 6 . . 8 . . Average 33 | . 31 10 . 14 33 1 . 3 63 . 28 92 Influence Increases 2787 | . 257 81 . 190 324 40 23 73 306 2 483 1008 Destroy 0b10 Robot/C 1400 | . 180 60 . 80 160 20 . 40 200 . 260 400 Destroy 0b10 Robot/NC 80 | . 10 . . 10 10 . . 5 5 . 5 35 Destroy Leader 232 | . 32 10 . 10 20 10 . 10 30 . 50 60 Allied During Kill 11 | . . 11 . . . . . . . . . . Trap Triggered on 0b10 20 | . . . . . 20 . . . . . . . Successful Hack 134 | . 5 . . . 10 10 23 . 8 . 36 42 Disable Machine 90 | . . . . 15 15 . . . . . 15 45 Destroy Structure 415 | . . . . . 29 . . 18 18 2 72 276 Lose Combat Pursuer 405 | . 30 . . 75 60 . . . 45 . 45 150 Influence Decreases 2483 | . 194 144 . 186 328 26 37 73 290 18 483 704 Entered New Map 58 | . . 39 . . 3 . 8 . . 8 . . Time Decay 1648 | . 174 105 . 159 175 26 29 73 280 10 246 371 Lost Part 627 | . 20 . . 27 . . . . 10 . 237 333 Purge Threat 150 | . . . . . 150 . . . . . . . Squads Dispatched 23 | . . . . . 2 1 . 2 2 2 6 8 Investigation . | . . . . . . . . . . . . . Extermination 14 | . . . . . . 1 . 1 2 1 4 5 Reinforcement 9 | . . . . . 2 . . 1 . 1 2 3 Assault . | . . . . . . . . . . . . . Garrison . | . . . . . . . . . . . . . Intercept . | . . . . . . . . . . . . . Searches Triggered . | . . . . . . . . . . . . . Construction Impeded 2 | . . . . . . . . . . . 1 1 Haulers Reinforced . | . . . . . . . . . . . . . Active Scanning Responses . | . . . . . . . . . . . . . Cargo Convoy Interrupts . | . . . . . . . . . . . . . Stealth | -11 -10 -10 -10 -9 -8 -7 -6 -5 -4 -3 -2 -1 --------- Run | Yrd Mat Min Exi Min Mat Fac Fac Fac Fac Res Res Acc Distress Signals 4 | . . . . . 3 . . . . . . 1 Communications Jammed . | . . . . . . . . . . . . . Distress Signals . | . . . . . . . . . . . . . Times Spotted 155 | . 13 3 . 22 22 1 1 3 18 1 32 39 Peak Tracking Total 13 | . 4 3 . 6 9 1 1 2 5 . 12 13 Tactical Retreats 16 | . 2 . . 6 2 . . . 1 . 1 4 Traps | -11 -10 -10 -10 -9 -8 -7 -6 -5 -4 -3 -2 -1 ------- Run | Yrd Mat Min Exi Min Mat Fac Fac Fac Fac Res Res Acc Traps Triggered 8 | . . . . . 2 . 1 2 2 . . 1 Indirectly . | . . . . . . . . . . . . . Trap Hack Attempts . | . . . . . . . . . . . . . Triggered . | . . . . . . . . . . . . . Disarmed . | . . . . . . . . . . . . . Reprogrammed . | . . . . . . . . . . . . . Reused 2 | . . . . . 2 . . . . . . . Traps Extracted . | . . . . . . . . . . . . . Installed 2 | . . . . . 2 . . . . . . . Triggered 2 | . . . . . 2 . . . . . . . Most Traps Carried 3 | . . 3 3 3 3 1 1 1 . . . . Machines | -11 -10 -10 -10 -9 -8 -7 -6 -5 -4 -3 -2 -1 ---------- Run | Yrd Mat Min Exi Min Mat Fac Fac Fac Fac Res Res Acc Machines Disabled 6 | . . . . 1 1 . . . . . 1 3 Max in Single Turn 1 | . . . . . 1 . . . . . 1 1 Garrison Access 2 | . . . . . 1 . . . . . . 1 Machines Repaired . | . . . . . . . . . . . . . Machines Dismantled 1 | . . . . . . . . . . . . 1 Machines Sabotaged . | . . . . . . . . . . . . . Overloaded Fab Kills . | . . . . . . . . . . . . . Hacking | -11 -10 -10 -10 -9 -8 -7 -6 -5 -4 -3 -2 -1 --------- Run | Yrd Mat Min Exi Min Mat Fac Fac Fac Fac Res Res Acc Machines Accessed 33 | . 3 . 1 . 6 3 2 3 4 2 3 6 Terminals 18 | . 3 . . . 4 1 1 2 1 2 2 2 Fabricators 1 | . . . . . . . . 1 . . . . Repair Stations 6 | . . . . . 1 1 . . 2 . 1 1 Recycling Units 1 | . . . . . . . . . . . . 1 Scanalyzers 4 | . . . . . . 1 1 . 1 . . 1 Garrison Access 2 | . . . . . 1 . . . . . . 1 Total Hacks 77 | . 9 . 1 . 13 5 5 6 16 8 6 8 Successful 39 | . 3 . 1 . 7 1 4 2 12 4 2 3 Failed 38 | . 6 . . . 6 4 1 4 4 4 4 5 Catastrophic 11 | . 2 . . . . 1 1 2 . 2 1 2 Database Lockouts . | . . . . . . . . . . . . . Manual 29 | . 9 . 1 . 3 1 . 3 5 5 1 1 Terminals 43 | . 9 . . . 7 1 2 5 6 8 3 2 Fabricators 1 | . . . . . . . . 1 . . . . Repair Stations 19 | . . . . . 5 1 . . 8 . 3 2 Recycling Units 1 | . . . . . . . . . . . . 1 Scanalyzers 10 | . . . . . . 3 3 . 2 . . 2 Garrison Access 2 | . . . . . 1 . . . . . . 1 Terminal Hacks 11 | . 1 . 1 . 3 . 1 1 2 2 . . Record 2 | . . . . . . . . . . 2 . . Robot Analysis 1 | . . . . . . . . 1 . . . . Prototype ID Bank 1 | . 1 . . . . . . . . . . . Level Access Points 1 | . . . . . . . . . 1 . . . Alert Level 2 | . . . . . 1 . . . 1 . . . Unreport Threat 1 | . . . . . 1 . . . . . . . Locate Traps 2 | . . . . . 1 . 1 . . . . . Proto ID Catalog 1 | . . . 1 . . . . . . . . . Fabricator Hacks 1 | . . . . . . . . 1 . . . . Network Status 1 | . . . . . . . . 1 . . . . Repair Station Hacks 11 | . . . . . 2 . . . 7 . 2 . Scan Component 6 | . . . . . 1 . . . 4 . 1 . Repair 5 | . . . . . 1 . . . 3 . 1 . Recycling Unit Hacks . | . . . . . . . . . . . . . Scanalyzer 7 | . . . . . . 1 3 . 1 . . 2 Insert Component 3 | . . . . . . 1 2 . . . . . Retrieve Study 4 | . . . . . . . 1 . 1 . . 2 Garrison Access Hacks 2 | . . . . . 1 . . . . . . 1 Seal Access 2 | . . . . . 1 . . . . . . 1 Unauthorized Hacks 7 | . 2 . . . 1 . . . 2 2 . . Terminals 7 | . 2 . . . 1 . . . 2 2 . . Track 1 | . . . . . . . . . 1 . . . Assimilate 1 | . . . . . 1 . . . . . . . Botnet 5 | . 2 . . . . . . . 1 2 . . Fabricators . | . . . . . . . . . . . . . Repair Stations . | . . . . . . . . . . . . . Recycling Units . | . . . . . . . . . . . . . Scanalyzers . | . . . . . . . . . . . . . Garrison Access . | . . . . . . . . . . . . . Data Cores Recovered . | . . . . . . . . . . . . . Used . | . . . . . . . . . . . . . Hacking Detections 24 | . 2 . . . 4 3 1 3 2 2 3 4 Full Trace Events . | . . . . . . . . . . . . . Feedback Events . | . . . . . . . . . . . . . Feedback Blocked . | . . . . . . . . . . . . . Robot Schematics Acquired . | . . . . . . . . . . . . . Robots Built . | . . . . . . . . . . . . . Authchips . | . . . . . . . . . . . . . Time . | . . . . . . . . . . . . . Total Robot Build Rating . | . . . . . . . . . . . . . Part Schematics Acquired . | . . . . . . . . . . . . . Parts Built . | . . . . . . . . . . . . . Authchips . | . . . . . . . . . . . . . Time . | . . . . . . . . . . . . . Total Part Build Rating . | . . . . . . . . . . . . . Part Studies Acquired 4 | . . . . . . . 1 . 1 . . 2 Parts Repaired 5 | . . . . . 1 . . . 3 . 1 . Time 166 | . . . . . 32 . . . 120 . 14 . Parts Recycled . | . . . . . . . . . . . . . Recycled Matter . | . . . . . . . . . . . . . Retrieved Matter . | . . . . . . . . . . . . . Retrieved Components . | . . . . . . . . . . . . . Parts Scanalyzed . | . . . . . . . . . . . . . Part Schematics Acquired . | . . . . . . . . . . . . . Parts Damaged . | . . . . . . . . . . . . . Bothacking | -11 -10 -10 -10 -9 -8 -7 -6 -5 -4 -3 -2 -1 ------------ Run | Yrd Mat Min Exi Min Mat Fac Fac Fac Fac Res Res Acc Used RIF Installer . | . . . . . . . . . . . . . Robots Hacked . | . . . . . . . . . . . . . Non-combat . | . . . . . . . . . . . . . Combat . | . . . . . . . . . . . . . Robot Hacks Applied . | . . . . . . . . . . . . . Relay Couplers Released . | . . . . . . . . . . . . . Fabnet Peak Effective % . | . . . . . . . . . . . . . Robots Rewired . | . . . . . . . . . . . . . Allies Hacked . | . . . . . . . . . . . . . Hacks Repelled . | . . . . . . . . . . . . . Allies | -11 -10 -10 -10 -9 -8 -7 -6 -5 -4 -3 -2 -1 -------- Run | Yrd Mat Min Exi Min Mat Fac Fac Fac Fac Res Res Acc Total Allies 6 | . . 5 . 1 . . . . . . . . Largest Group 5 | . . 5 1 1 . . . . . . . . Highest-Rated Group 91 | . . 91 31 31 . . . . . . . . Highest-Rated Ally 31 | . . 31 31 31 . . . . . . . . Total Orders 3 | . . 3 . . . . . . . . . . STAY 2 | . . 2 . . . . . . . . . . FOLLOW 1 | . . 1 . . . . . . . . . . Ally Attacks 24 | . . 10 . 14 . . . . . . . . Total Damage 261 | . . 95 . 166 . . . . . . . . Kills 5 | . . 3 . 2 . . . . . . . . Allies Corrupted . | . . . . . . . . . . . . . Allies Melted . | . . . . . . . . . . . . . Intel | -11 -10 -10 -10 -9 -8 -7 -6 -5 -4 -3 -2 -1 ------- Run | Yrd Mat Min Exi Min Mat Fac Fac Fac Fac Res Res Acc Active Infowar (turns) 8093 | . 13 824 323 153 723 619 513 933 986 212 1530 1264 Terrain 108 | . . . . . . . . . . . . 108 Structural 6606 | . . . . . 597 605 513 933 960 212 1525 1261 Seismic 6798 | . 13 824 323 153 723 619 513 933 986 212 1499 . Triangulation 1404 | . . . . . . . . . . . 1404 . Cloaking 2709 | . . . . . . . . 932 531 212 1034 . Robot Analysis Total 1 | . . . . . . . . 1 . . . . Derelict Logs Recovered 3 | . . 2 . 1 . . . . . . . . Drone Launches . | . . . . . . . . . . . . . Drone Recoveries . | . . . . . . . . . . . . . Exploration | -11 -10 -10 -10 -9 -8 -7 -6 -5 -4 -3 -2 -1 ------------- Run | Yrd Mat Min Exi Min Mat Fac Fac Fac Fac Res Res Acc Turns Passed 9833 | 47 561 824 323 1018 725 619 513 933 986 212 1559 1513 Spaces Moved 7406 | 36 320 570 212 1042 491 493 444 721 572 207 1084 1214 Core 95 | 1 . . . . . . . . . . 7 87 Treads 29 | . . . . . . . . . . . 9 20 Legs 5795 | . 33 570 212 1042 491 493 444 721 572 207 1010 . Wheels 795 | 35 287 . . . . . . . . . . 473 Hover 634 | . . . . . . . . . . . . 634 Flight 58 | . . . . . . . . . . . 58 . Fastest Speed 34 | 50 90 120 90 90 105 112 105 105 95 95 34 44 Average Speed 101 | 90 96 142 144 90 107 112 110 106 99 95 104 73 Slowest Speed 250 | 100 120 190 190 90 120 112 112 110 108 95 175 250 Overloaded Moves . | . . . . . . . . . . . . . Propulsion Burnouts . | . . . . . . . . . . . . . Robots Hopped 2 | . . . . . . . . . . . 2 . Potential Cave-ins . | . . . . . . . . . . . . . Cave-ins Triggered . | . . . . . . . . . . . . . Exploration Rate (%) 33 | 4 46 78 60 94 50 15 11 15 13 6 21 24 Regions Visited 12 Branch Regions 3 Pre-discovered Areas . | . . . . . . . . . . . . . Known Exits Taken 6 | . . . . . 1 1 1 1 1 1 . . Unknown Exits Taken 6 | 1 1 1 1 1 . . . . . . 1 . Scrap Searched 4 | . . 3 . 1 . . . . . . . . Spaces Dug 42 | . . . . . 5 . . 9 9 1 18 . Terrain Destroyed 195 | . . . . . 35 . . 9 9 1 24 117 Melee 35 | . . . . . 5 . . 9 9 1 11 . Projectile 25 | . . . . . . . . . . . 13 12 AOE 135 | . . . . . 30 . . . . . . 105 Terrain Rammed . | . . . . . . . . . . . . . Walls Destroyed . | . . . . . . . . . . . . . Machines Disabled . | . . . . . . . . . . . . . Actions | -11 -10 -10 -10 -9 -8 -7 -6 -5 -4 -3 -2 -1 --------- Run | Yrd Mat Min Exi Min Mat Fac Fac Fac Fac Res Res Acc Total 9240 | 47 504 584 229 1091 661 549 470 849 924 219 1428 1685 Wait 1229 | . 137 2 14 24 97 22 . 86 302 7 233 305 Move 7391 | 35 319 569 211 1041 490 492 443 720 571 206 1080 1214 Hop 2 | . . . . . . . . . . . 2 . Pick Up 93 | 6 6 6 . 2 15 11 12 6 4 2 7 16 Fast Attach 73 | 6 2 . . 2 6 . . . 3 . 13 41 Attach 43 | . 1 . . 2 6 2 3 2 2 2 11 12 Detach 7 | . . . . . 1 . . . . . 1 5 Swap 57 | . 4 1 2 2 9 5 3 7 9 . 12 3 Drop 74 | . 2 6 2 . 13 9 9 8 2 . 13 10 Fire 208 | . 33 . . 11 15 8 . 9 21 . 43 68 Melee 49 | . . . . 7 7 . . 11 10 2 12 . Ram 2 | . . . . . . . . . . . 1 1 Kick . | . . . . . . . . . . . . . Crush . | . . . . . . . . . . . . . Escape Stasis . | . . . . . . . . . . . . . Rewire . | . . . . . . . . . . . . . Trap 2 | . . . . . 2 . . . . . . . Miscellaneous 10 | . . . . . . . . . . . . 10 Route ------- -11/Scrapyard -10/Materials (discovered 2 exits: [*Mat] / [*Min]) -10/Mines (discovered 2 exits: [*Mat] / *Exi) -10/Exiles -9/Mines -8/Materials (discovered 3 exits: *Fac / Sto x2) -7/Factory -6/Factory -5/Factory (discovered 3 exits: *Fac / *Upp x2) -4/Factory (discovered 4 exits: *Res x4) -3/Research -2/Research -1/Access History --------- Turn | Location | Event 29 | -11/Scrapyard | Discovered new exit (range 14) 48 | -11/Scrapyard | Entered Materials 314 | -10/Materials | Build established: Mutant 396 | -10/Materials | Discovered new exit (range 16) 526 | -10/Materials | Discovered new exit (range 15) 609 | -10/Materials | Entered Mines 624 | -10/Mines | Assisted by bots powering up and referring to "LRC-V3" 961 | -10/Mines | Discovered new exit (range 10) 1122 | -10/Mines | Found a hidden stash of uninstalled traps 1200 | -10/Mines | Learned location of 1 exit from Materials 1366 | -10/Mines | Deemed a non-threat by the Exiles lab entrance 1366 | -10/Mines | Discovered new exit (range 5) 1433 | -10/Mines | Entered Exiles 1433 | -10/Exiles | Accompanied by 1 ally 1463 | -10/Exiles | Led the pair of lost Derelicts to a safe place 1479 | -10/Exiles | Met 8R-AWN 1511 | -10/Exiles | Met EX-HEX 1568 | -10/Exiles | Met EX-BIN 1595 | -10/Exiles | Aligned with FarCom system 1597 | -10/Exiles | Given EX-Vault access code 1641 | -10/Exiles | Opened EX-Vault 1652 | -10/Exiles | Found Potential Leg 1655 | -10/Exiles | Found Potential Leg 1674 | -10/Exiles | Warned to stay clear of 0b10 Research branches 1687 | -10/Exiles | Exiles lab attacked by MAIN.C 1733 | -10/Exiles | Discovered new exit (range 10) 1756 | -10/Exiles | Left Exiles lab with Potential Leg 1756 | -10/Exiles | Entered Mines 1810 | -9/Mines | Assembled infested the area 1815 | -9/Mines | Assisted by a Guerilla fighting off Assembled 1947 | -9/Mines | Core integrity fell below 50% 1964 | -9/Mines | Learned 2 Materials zone layouts 2012 | -9/Mines | A weapon hastily lodged in a ceiling crevice suddenly fell to the ground 2430 | -9/Mines | Core integrity fell below 20% 2591 | -9/Mines | Escorted by a lone wolf Derelict 2747 | -9/Mines | Discovered new exit (range 12) 2774 | -9/Mines | Entered Materials 2774 | -8/Materials | Evolved 4 slots: Propulsion x2, Utility x2 2775 | -8/Materials | Identified exit to Storage 2776 | -8/Materials | Identified exit to Factory 3213 | -8/Materials | Destroyed 8 combat bots 3483 | -8/Materials | Repaired Hrd. Light Armor Plating 3499 | -8/Materials | Entered Factory 3499 | -7/Factory | Evolved 2 slots: Utility x2 4011 | -7/Factory | Discovered new exit (range 10) 4117 | -7/Factory | Identified exit to Factory 4118 | -7/Factory | Entered another Factory area 4118 | -6/Factory | Evolved 2 slots: Utility x2 4623 | -6/Factory | Discovered new exit (range 7) 4630 | -6/Factory | Identified exit to Factory 4631 | -6/Factory | Entered another Factory area 4631 | -5/Factory | Evolved 2 slots: Utility x2 4849 | -5/Factory | Spotted B-75 Beast 4870 | -5/Factory | Discovered new exit (range 13) 4882 | -5/Factory | Identified exit to Upper Caves 4934 | -5/Factory | Build established: Hacker-Mutant 5242 | -5/Factory | Discovered exit to Upper Caves (range 6) 5549 | -5/Factory | Discovered new exit (range 5) 5555 | -5/Factory | Identified exit to Factory 5564 | -5/Factory | Entered another Factory area 5564 | -4/Factory | Evolved 2 slots: Propulsion x1, Utility x1 6036 | -4/Factory | Repaired Structural Scanner 6087 | -4/Factory | Repaired Cloaking Device 6132 | -4/Factory | Repaired Imp. Carbon-fiber Leg 6441 | -4/Factory | Identified exit to Research 6550 | -4/Factory | Entered Research 6550 | -3/Research | Evolved 2 slots: Propulsion x1, Utility x1 6742 | -3/Research | Discovered new exit (range 12) 6761 | -3/Research | Identified exit to Research 6762 | -3/Research | Entered another Research area 6762 | -2/Research | Evolved 2 slots: Propulsion x1, Utility x1 7795 | -2/Research | Repaired Lyr. Light Armor Plating 7910 | -2/Research | System corruption reached 10% 8259 | -2/Research | Lost 5 parts (1p2n2u) 8316 | -2/Research | Discovered new exit (range 5) 8317 | -2/Research | Core integrity fell below 50% 8321 | -2/Research | Entered Access 8321 | -1/Access | Evolved 2 slots: Utility x2 8347 | -1/Access | Lost 23 parts (1p11n8u3w) 8781 | -1/Access | Lost 8 parts (1p4n1u2w) 9081 | -1/Access | Build established: Scavenger-Mutant 9094 | -1/Access | Lost 5 parts (3n2u) 9313 | -1/Access | Spotted B-99 Colossus 9803 | -1/Access | Core integrity fell below 50% 9803 | -1/Access | System corruption reached 10% 9823 | -1/Access | Core integrity fell below 20% 9834 | -1/Access | Destroyed by C-57 Dissector with Advanced Concussive RPG Last Messages --------------- 09811_ S-43 Plague destroyed. 09814_ P-80 Master resets P-80 Master, system corruption cleaned. 09815_ Cmb. Linear Gravjet severed. 09815_ Mic. Antimatter Reactor destroyed. 09818_ System Shield severed. 09818_ Acquired Micro-nuke Launcher. 09821_ Micro-nuke Launcher destroyed. 09822_ The unstable cave ceiling collapses. 09822_ Adv. Signal Interpreter severed. 09822_ Acquired Micro-nuke Launcher. 09824_ Destroyed Adv. Reaction Control System. 09824_ C-57 Dissector destroyed. 09824_ Micro-nuke Launcher destroyed. 09825_ System corrupted: Energy discharge (-33). 09826_ The unstable cave ceiling collapses. 09826_ K-01 Serf collects debris. 09827_ P-80 Master resets P-80 Master, system corruption cleaned. 09832_ C-57 Dissector destroyed. Map ----- +----------------------------------------------------+ | ?????????????????????????????????????????????????? | | ?????????????????????????????????????????????????? | | ?????????????????????????????????????????????????? | | ############?????????????????????????????????????? | | ############?????????????????????????????????????? | | ## ##?????????????????????????????????????? | | ## ##?????????????????????????????????????? | | ## ##?????????????????????????????????????? | | ## ##?????????????????????????????????????? | | ## " ##?????????????????????????????????????? | | ## """ ##?????????????????????????????????????? | | # " ##?????????????????????????????????????? | | # ##?????????????????????????????????????? | | / ##???????????????###########???????????? | | %###########???????????????###########???????????? | | ###########???????????????## ##???????????? | | ###????????????????????????## ##???????????? | | ###????????????????????????## ############## | | ###???????????############### ############## | | ##???????????############### # # | | ##???????????## # # # | | %##???????????## # # ?? | | %##???????????## " # # """??? | | ! #???######??## """" # # """??? | | ##### #??## """"" # # """"?? | | ### # ##?## """""@ + + """"?? | | #### """" # # """"?? | | = ] ### " # # """??? | | %]p ### # # # | | # [% # # # # | | / pp % c # # # | | # # ############## | | # ###### ########## ############## | | ##??## # ##???????????? | | = ###### # ##???????????? | | #+####### ? " # ##???????????? | | ### # # ? "" # ##???????????? | | + !# ? "" # ##???????????? | | ######## # # ? "" # ##?#########?? | | ######## # # "" + ##?#########?? | | ##????## # ! # "" + # ? ?? | | ##????## # # "" # # ? ???? | | ##????## # # " # # ????? | | ??????## ####### # # * """"????? | | ??????## ####### # # """"????? | | ??????## ##???############### # """"????? | | ??????## ??? ############## + """"????? | | ???????###?????????????????## # """"????? | | ???????###?????????????????## # ??? | | ???????????????????????????## # # | +----------------------------------------------------+ Best States ------------- Heat Dissipation 109 Coolant Potential 160 Energy Generation 25 Energy Capacity 325 Matter Stores 400 Matter Capacity 400 Sight Range 16 Terrain Scan Range 14 Terrain Scan Density 10 Cloak Strength 2 Additional Mass Support 9 Armor Coverage 300 Resistance: TH 30 Core Shielding 30 Evasion (%) 68 Target Analysis 8 Recoil Reduction 2 Offensive Hacking 34 Defensive Hacking 24 Item Schematics ----------------- None Robot Schematics ------------------ None Fabricated ------------ Nothing Repaired ---------- Hrd. Light Armor Plating | 2% | -8/Materials Structural Scanner | 25% | -4/Factory Cloaking Device | 37% | -4/Factory Imp. Carbon-fiber Leg | 30% | -4/Factory Lyr. Light Armor Plating | 7% | -2/Research Studied --------- Hvy. Laser | -6/Factory | Hacked Imp. Carbon-fiber Leg | -4/Factory | Hacked Imp. Antigrav System | -1/Access | Hacked Linear Accelerator | -1/Access | Hacked Alien Tech Used ----------------- None Achievements -------------- Bumper Bots Fancy Inventory Sprinter Challenges ------------ None Game ------ Seed ActuatorWeightReplicator Manual? 0 Play Time 02:25:57 Cumulative 177.3 hours Start 2026.09.11 @ 22:07:08 End 2026.09.12 @ 23:23:42 Sessions 3 Manual Loads 0 Difficulty Rogue Special Mode None Game No. 97 Rogue 87 Adventurer 5 Explorer 5 Win Type - Total 12 Types 10/0/1/1/0/0/0/0/0/0 Lore% 46 Gallery% 56 Achievement% 35 Wizard Run 0 Options --------- Layout 2 ASCII 0 Keyboard 0 Movement Mouse Keybinds 1 Fullscreen 1 Font 20/Terminus Map View 50x44 Zoom Use 0% Tactical HUD 1 Map Filters NONE Filters SATURATION(60) Steam 1 RUN: 0cc3824c-2a57-44ef-bed1-8051bd56b014